bitfinex/quotes_BTCUSD_20260307
["timestamp","ask_amount","ask_price","bid_price","bid_amount"]
[1772870208967,0.00148,67817.0,67815.0,0.03518232]
[1772870209737,0.00148,67817.0,67815.0,0.18732355]
[1772870209932,0.00148,67817.0,67815.0,0.0002]
[1772870210340,0.00148,67816.0,67815.0,0.0002]
[1772870210601,0.00022001,67820.0,67815.0,0.17589782]
[1772870210729,0.00148,67816.0,67815.0,0.17589782]
[1772870211989,0.00148,67816.0,67815.0,0.0002]
[1772870212552,0.00022001,67820.0,67815.0,0.0002]
[1772870212802,0.00148,67819.0,67816.0,0.02355659]
[1772870213208,1e-08,67827.0,67818.0,0.02355659]
[1772870213402,0.00148,67826.0,67818.0,0.17569782]
[1772870214436,0.00148,67826.0,67819.0,0.07372565]
[1772870215952,0.00148,67825.0,67819.0,0.07372565]
[1772870217536,0.00148,67824.0,67820.0,0.17569782]
[1772870217953,0.00148,67824.0,67819.0,0.07372565]
[1772870218663,0.00148,67824.0,67820.0,0.18196209]
[1772870220477,0.00148,67823.0,67819.0,0.07372565]
[1772870220677,0.00148,67823.0,67821.0,0.07372347]
[1772870221627,0.00148,67822.0,67821.0,0.07372347]
[1772870222735,0.00148,67822.0,67820.0,0.07372347]
[1772870223673,0.00148,67824.0,67821.0,0.15144701]
[1772870223872,0.00148,67826.0,67825.0,0.15144701]
[1772870224076,0.00148,67826.0,67825.0,0.17536859]
[1772870224702,0.11888417,67829.0,67822.0,0.02392158]
[1772870224890,0.00148,67826.0,67825.0,0.15144701]
[1772870225274,0.00148,67826.0,67825.0,0.17536859]
[1772870226698,0.00148,67828.0,67820.0,0.07372456]
[1772870226900,0.00148,67832.0,67823.0,0.15144701]
[1772870227110,0.00148,67832.0,67824.0,0.15144701]
[1772870227312,0.00148,67832.0,67827.0,0.02392158]
[1772870227512,0.00148,67832.0,67829.0,0.15144701]
[1772870227762,0.00148,67832.0,67830.0,0.02392158]
[1772870227894,0.00148,67832.0,67831.0,0.02344015]
[1772870228107,0.00148,67833.0,67831.0,0.02344015]
[1772870228318,0.00148,67833.0,67831.0,0.15144701]
[1772870228513,0.00022001,67842.0,67832.0,0.02344015]
[1772870228713,0.00148,67841.0,67833.0,0.07371043]
[1772870228933,0.00148,67840.0,67833.0,0.09715058]
[1772870229141,0.00148,67839.0,67833.0,0.09715058]
[1772870229338,0.00148,67838.0,67833.0,0.07371043]
[1772870229558,0.00148,67837.0,67834.0,0.02344015]
[1772870229855,0.00148,67837.0,67833.0,0.07371043]
[1772870230159,0.08642132,67847.0,67834.0,0.02344015]
[1772870230314,0.00148,67846.0,67834.0,0.02344015]
[1772870231107,0.00148,67846.0,67835.0,0.07370826]
[1772870231793,0.00022001,67849.0,67837.0,0.02344015]
[1772870231969,0.00022001,67849.0,67839.0,0.07312721]
[1772870232164,0.00148,67848.0,67840.0,0.02344015]
[1772870233185,0.00155352,67848.0,67840.0,0.02344015]
[1772870233560,0.00155352,67848.0,67841.0,0.07370174]
[1772870235311,0.00148,67847.0,67841.0,0.07370174]
[1772870235506,0.00148,67847.0,67840.0,0.07370174]
[1772870235855,0.00148,67847.0,67838.0,0.04120579]
[1772870236054,0.0134676,67844.0,67834.0,7.21e-06]
[1772870236258,0.0134676,67842.0,67832.0,0.07371127]
[1772870236459,0.0149476,67841.0,67832.0,0.07371127]
[1772870237007,0.00148,67840.0,67832.0,0.07371127]
[1772870238580,0.00148,67840.0,67833.0,0.02344015]
[1772870239802,0.00148,67840.0,67834.0,0.07370934]
[1772870240034,0.0148656,67846.0,67834.0,0.07370934]
[1772870240243,0.00148,67845.0,67834.0,0.07370934]
[1772870240766,0.00148,67844.0,67834.0,0.07370934]
[1772870241033,0.00148,67844.0,67834.0,0.07378286]
[1772870241797,0.0011416,67853.0,67836.0,0.02532296]
[1772870242001,0.0011416,67853.0,67840.0,0.04968706]
[1772870242321,0.00148,67852.0,67840.0,0.22645703]
[1772870242494,0.00148,67852.0,67841.0,0.02532296]
[1772870243714,0.00022001,67847.0,67841.0,0.02532296]
[1772870244066,0.00148,67846.0,67842.0,0.09902361]
[1772870244631,0.00148,67846.0,67842.0,0.25047062]
[1772870246360,0.00148,67846.0,67842.0,0.07370065]
[1772870247936,0.00148,67846.0,67841.0,0.09902404]
[1772870248360,0.00148,67846.0,67842.0,0.02532296]
[1772870249064,0.00148,67846.0,67841.0,0.15144701]
[1772870250067,0.00148,67846.0,67840.0,0.07370065]
[1772870250479,0.00170001,67846.0,67840.0,0.07370065]
[1772870250835,0.00022001,67846.0,67840.0,0.07370065]
[1772870251060,0.00051543,67844.0,67833.0,0.0002]
[1772870251540,0.00148,67843.0,67835.0,0.07370826]
[1772870251745,0.07369435,67848.0,67835.0,0.07370826]
[1772870251939,0.00148,67847.0,67835.0,0.07370826]
[1772870252301,0.00148,67846.0,67835.0,0.07370826]
[1772870254926,0.00148,67845.0,67835.0,0.07370826]
[1772870255524,0.07506734,67847.0,67835.0,0.25220471]
[1772870256756,0.07369314,67849.0,67837.0,0.02558067]
[1772870256916,0.00148,67848.0,67838.0,0.20407712]
[1772870257309,0.00022001,67846.0,67838.0,0.20407712]
[1772870257559,0.00022001,67846.0,67838.0,0.17849645]
[1772870258359,0.00022001,67846.0,67839.0,0.07370391]
[1772870259236,0.00148,67845.0,67839.0,0.07370391]
[1772870259682,0.00022001,67846.0,67839.0,0.07370391]
[1772870259981,0.00148,67845.0,67839.0,0.07370391]
[1772870260137,0.00148,67844.0,67840.0,0.20407712]
[1772870260583,0.07390897,67853.0,67842.0,0.17849645]
[1772870260787,0.00148,67852.0,67842.0,0.17849645]
[1772870261271,0.00148,67852.0,67841.0,0.07370174]
[1772870261471,0.00148,67852.0,67841.0,0.25219819]
[1772870261996,0.00148,67852.0,67842.0,0.17849645]
[1772870262719,0.07516994,67852.0,67843.0,0.07369957]
[1772870263875,0.07538995,67852.0,67843.0,0.07369957]
[1772870264784,0.00022001,67852.0,67844.0,0.17849645]
[1772870265131,0.00148,67851.0,67844.0,0.20407712]
[1772870266249,0.00148,67851.0,67844.0,0.17849645]
[1772870266629,0.00148,67851.0,67834.0,7.352e-05]
[1772870266630,0.00074577,67850.0,67834.0,7.352e-05]
[1772870266807,0.00074577,67848.0,67834.0,7.352e-05]
[1772870268818,0.07369522,67847.0,67834.0,7.352e-05]
[1772870270830,0.07369739,67845.0,67834.0,0.07378286]
[1772870271126,0.00148,67844.0,67834.0,0.25227931]
[1772870271547,0.00148,67844.0,67835.0,0.17869645]
[1772870271878,0.00148,67843.0,67835.0,0.17869645]
[1772870272746,0.07369739,67845.0,67835.0,0.17869645]
[1772870272944,0.00148,67844.0,67837.0,0.17849645]
[1772870273175,0.00148,67844.0,67837.0,0.20407712]
[1772870273758,0.00148,67844.0,67837.0,0.17849645]
[1772870275575,0.00148,67848.0,67838.0,0.02558067]
[1772870275742,0.00022001,67854.0,67841.0,0.17820045]
[1772870275743,0.00148,67847.0,67841.0,0.17820045]
[1772870275945,0.00148,67847.0,67844.0,0.02558067]
[1772870276144,0.00148,67847.0,67845.0,0.17790445]
[1772870276711,0.00148,67847.0,67845.0,0.20348512]
[1772870277021,0.00148,67847.0,67838.0,0.04965733]
[1772870277231,0.00148,67847.0,67833.0,0.0002]
[1772870277232,0.00148,67847.0,67835.0,0.0002]
[1772870277430,0.07369739,67845.0,67835.0,0.0002]
[1772870277628,0.07494655,67845.0,67835.0,0.0002]
[1772870282060,0.00124916,67845.0,67835.0,0.0002]
[1772870282591,0.07369739,67846.0,67835.0,0.0002]
[1772870283464,0.00170001,67847.0,67836.0,0.17790445]
[1772870283665,0.00022001,67847.0,67838.0,0.17790445]
[1772870283989,0.00148,67846.0,67839.0,0.20348512]
[1772870284190,0.00148,67846.0,67840.0,0.07370283]
[1772870284399,0.00148,67845.0,67836.0,0.07370643]
[1772870286186,0.00148,67845.0,67835.0,0.07390766]
[1772870286587,0.00148,67845.0,67835.0,0.25181211]
[1772870286830,0.07369634,67846.0,67835.0,0.25181211]
[1772870287006,0.00148,67844.0,67835.0,0.25181211]
[1772870287714,0.00148,67843.0,67835.0,0.25181211]
[1772870287918,0.00148,67842.0,67836.0,0.17790445]
[1772870288222,0.00022001,67847.0,67838.0,0.17731245]
[1772870288419,0.00148,67846.0,67835.0,0.07390741]
[1772870288623,0.01729097,67846.0,67835.0,0.07390741]
[1772870288819,0.01729097,67846.0,67835.0,0.25121986]
[1772870288985,0.00148,67846.0,67836.0,0.17731245]
[1772870290721,0.00148,67846.0,67837.0,0.07370608]
[1772870290915,0.07517663,67846.0,67837.0,0.07370608]
[1772870291110,0.00022001,67847.0,67838.0,0.17731245]
[1772870291317,0.00148,67846.0,67839.0,0.0237978]
[1772870291514,0.00148,67846.0,67840.0,0.17731245]
[1772870292118,0.07391535,67847.0,67840.0,0.17731245]
[1772870292289,0.00148,67845.0,67840.0,0.17731245]
[1772870292728,0.00148,67845.0,67840.0,0.25101479]
[1772870294122,0.07369636,67846.0,67840.0,0.07370234]
[1772870294467,0.00148,67845.0,67841.0,0.17731245]
[1772870295439,0.00148,67845.0,67841.0,0.25101418]
[1772870295656,0.00148,67845.0,67839.0,0.07370291]
[1772870296059,0.00022001,67847.0,67839.0,0.07370291]
[1772870296238,0.00148,67846.0,67843.0,0.0237978]
[1772870296450,0.00148,67845.0,67844.0,0.0237978]
[1772870296632,0.00148,67845.0,67844.0,0.20051825]
[1772870296840,0.00022001,67847.0,67844.0,0.09749628]
[1772870297042,0.00148,67846.0,67845.0,0.17672045]
[1772870297935,0.00022001,67852.0,67845.0,0.17672045]
[1772870298128,0.00148,67851.0,67845.0,0.17672045]
[1772870298750,0.00148,67851.0,67845.0,0.25041779]
[1772870298958,0.00148,67851.0,67845.0,0.24174356]
[1772870299162,0.00148,67851.0,67845.0,0.24174345]
[1772870300384,0.00022001,67847.0,67845.0,0.24174345]
[1772870300766,0.00022001,67847.0,67846.0,0.17498561]
[1772870301189,0.00022001,67847.0,67846.0,0.24868192]
[1772870303394,0.00170001,67847.0,67846.0,0.24868192]
[1772870303610,0.00022001,67852.0,67846.0,0.24868192]
[1772870303814,0.00148,67847.0,67846.0,0.17498561]
[1772870305491,0.00148,67847.0,67846.0,0.09749373]
[1772870305726,0.00148,67847.0,67846.0,0.27184334]
[1772870306187,0.00148,67847.0,67846.0,0.24804554]
[1772870306596,0.00170001,67847.0,67846.0,0.27184334]
[1772870306879,0.00148,67847.0,67846.0,0.27120733]
[1772870307515,0.00022001,67852.0,67843.0,0.0237978]
[1772870307694,0.00148,67851.0,67845.0,0.1733736]
[1772870307920,0.00148,67851.0,67848.0,0.0237978]
[1772870308136,0.00148,67851.0,67849.0,0.1733736]
[1772870308352,1e-08,67856.0,67844.0,0.1733736]
[1772870308582,0.14649064,67870.0,67847.0,0.0237978]
[1772870308773,0.00148,67861.0,67851.0,0.16136757]
[1772870308917,0.00148,67861.0,67853.0,0.16136757]
[1772870309762,0.0751603,67861.0,67854.0,0.07368762]
[1772870309960,0.01419554,67859.0,67841.0,0.07370132]
[1772870310164,0.01419554,67858.0,67841.0,0.07370132]
[1772870311137,0.01419554,67858.0,67841.0,0.09749912]
[1772870311357,0.07368104,67861.0,67850.0,0.0237978]
[1772870311557,0.00148,67857.0,67852.0,0.0237978]
[1772870312005,0.00148,67857.0,67853.0,0.0736887]
[1772870314155,0.00148,67857.0,67851.0,0.0237978]
[1772870318722,0.00022001,67858.0,67852.0,0.07368979]
[1772870318950,0.00148,67857.0,67853.0,0.15806687]
[1772870319529,0.00148,67857.0,67852.0,0.07368979]
[1772870320195,0.00148,67857.0,67852.0,0.23175666]
[1772870320398,0.00148,67856.0,67852.0,0.23175666]
[1772870321538,0.00148,67856.0,67850.0,0.07369177]
[1772870322519,0.00148,67856.0,67850.0,0.23175864]
[1772870325986,0.02549883,67861.0,67850.0,0.23175864]
[1772870325987,0.07367064,67870.0,67850.0,0.07369177]
[1772870326180,0.02549883,67868.0,67850.0,0.1233491]
[1772870327161,0.02549883,67866.0,67850.0,0.1233491]
[1772870327361,0.00148,67869.0,67846.0,0.1822953]
[1772870327362,0.02549883,67864.0,67846.0,0.07369583]
[1772870327580,0.12332797,67870.0,67846.0,0.07369583]
[1772870327581,0.02549883,67862.0,67846.0,0.07369583]
[1772870327898,0.1602916,67863.0,67846.0,0.07369583]
[1772870327899,0.02549883,67860.0,67846.0,0.07369583]
[1772870328099,0.07368219,67859.0,67846.0,0.07369583]
[1772870328260,0.07368219,67859.0,67849.0,0.04965733]
[1772870328457,0.09918102,67860.0,67849.0,0.04965733]
[1772870328797,0.00148,67859.0,67849.0,0.04965733]
[1772870330072,0.00148,67859.0,67850.0,0.07369196]
[1772870330981,0.00148,67858.0,67850.0,0.07369196]
[1772870331507,0.00148,67857.0,67850.0,0.07369196]
[1772870332003,0.00148,67856.0,67850.0,0.07369196]
[1772870332370,0.00022001,67859.0,67850.0,0.07369196]
[1772870332573,0.00148,67858.0,67850.0,0.07369196]
[1772870333220,0.00148,67858.0,67851.0,0.15806687]
[1772870333432,0.00148,67858.0,67851.0,0.1822953]
[1772870334120,0.00148,67858.0,67851.0,0.15806687]
[1772870334329,0.00148,67858.0,67850.0,0.07369196]
[1772870334480,0.00148,67858.0,67849.0,0.07389196]
[1772870334878,0.00148,67858.0,67851.0,0.02422843]
[1772870335102,0.00148,67858.0,67851.0,0.1822953]
[1772870335839,0.00022001,67859.0,67851.0,0.1822953]
[1772870336013,0.00148,67857.0,67851.0,0.1822953]
[1772870336514,0.00148,67856.0,67852.0,0.07368979]
[1772870336917,0.00022001,67859.0,67852.0,0.07368979]
[1772870337191,0.00022001,67859.0,67852.0,0.25598509]
[1772870337403,0.00148,67858.0,67852.0,0.25598509]
[1772870339345,0.00148,67858.0,67852.0,0.07368979]
[1772870340381,0.00148,67857.0,67852.0,0.07368979]
[1772870341354,0.00022001,67859.0,67852.0,0.1918854]
[1772870341556,0.07367722,67864.0,67853.0,0.02504266]
[1772870341770,0.00148,67863.0,67854.0,0.16684274]
[1772870343141,0.00148,67863.0,67854.0,0.1918854]
[1772870343974,0.00148,67863.0,67855.0,0.07368653]
[1772870345325,0.07515857,67863.0,67855.0,0.07368653]
[1772870346913,0.00148,67862.0,67856.0,0.16180991]
[1772870347083,0.00148,67862.0,67855.0,0.07368653]
[1772870347084,0.00126208,67862.0,67859.0,0.02504266]
[1772870347289,0.00148,67861.0,67858.0,0.02504266]
[1772870347441,0.00148,67861.0,67860.0,0.18685257]
[1772870347842,0.00148,67861.0,67853.0,0.12332291]
[1772870347843,0.00148,67861.0,67852.0,0.07368972]
[1772870348044,0.02467165,67860.0,67851.0,0.07389055]
[1772870348272,0.07368219,67859.0,67851.0,0.0002]
[1772870348471,0.07368219,67859.0,67855.0,0.0002]
[1772870351341,0.02467165,67858.0,67851.0,0.0002]
[1772870351748,0.07368219,67859.0,67851.0,0.0002]
[1772870352978,0.02467165,67858.0,67849.0,0.0002]
[1772870354396,0.07368219,67859.0,67849.0,0.0002]
[1772870355104,0.07368219,67859.0,67850.0,0.02407209]
[1772870355733,0.07368219,67859.0,67849.0,0.04983638]
[1772870356302,0.07368219,67859.0,67849.0,0.0002]
[1772870356506,0.00148,67861.0,67851.0,0.04963638]
[1772870356799,0.00148,67858.0,67854.0,0.16180991]
[1772870357087,0.00148,67858.0,67849.0,0.0002]
[1772870357088,0.02467165,67857.0,67849.0,0.0002]
[1772870357262,0.00404064,67857.0,67849.0,0.0002]
[1772870358759,0.01440728,67855.0,67849.0,0.0002]
[1772870360731,0.07368545,67856.0,67849.0,0.0002]
[1772870364366,0.01460966,67855.0,67849.0,0.0002]
[1772870365252,0.08825211,67854.0,67849.0,0.0002]
[1772870365985,0.08820615,67854.0,67849.0,0.0002]
[1772870366360,0.08920615,67854.0,67849.0,0.0002]
[1772870366807,0.07368762,67854.0,67849.0,0.0002]
[1772870367020,0.16958113,67852.0,67849.0,0.0002]
[1772870367317,0.01610499,67851.0,67849.0,0.0002]
[1772870367520,0.06311241,67850.0,67849.0,1e-08]
[1772870369294,0.06411241,67850.0,67849.0,1e-08]
[1772870369966,0.06311241,67850.0,67849.0,1e-08]
[1772870370378,0.06411241,67850.0,67849.0,1e-08]
[1772870370527,0.06411241,67850.0,67837.0,0.0002]
[1772870370528,0.01453023,67849.0,67837.0,0.0002]
[1772870370727,0.01458109,67849.0,67837.0,0.0002]
[1772870372871,0.08813369,67848.0,67837.0,0.0002]
[1772870373974,0.01434492,67847.0,67837.0,0.0002]
[1772870374180,0.07803905,67848.0,67837.0,0.0002]
[1772870374381,0.01434492,67847.0,67837.0,0.0002]
[1772870374791,0.06369413,67848.0,67837.0,0.0002]
[1772870376003,0.06369413,67848.0,67837.0,0.02427209]
[1772870384875,0.06391414,67848.0,67837.0,0.02427209]
[1772870388349,0.06391414,67848.0,67837.0,0.02445749]
[1772870388768,0.00148,67847.0,67840.0,0.17516154]
[1772870388995,0.06311241,67850.0,67843.0,0.17516154]
[1772870389193,0.06311241,67850.0,67844.0,0.17516154]
[1772870389394,0.00148,67849.0,67845.0,0.02422939]
[1772870389782,0.07517413,67849.0,67845.0,0.02422939]
[1772870390329,0.07517413,67849.0,67842.0,0.0001854]
[1772870390665,0.07517413,67849.0,67842.0,0.00023626]
[1772870391203,0.07539414,67849.0,67842.0,0.00023626]
[1772870391648,0.0897664,67849.0,67833.0,0.07390998]
[1772870391950,0.0897664,67849.0,67837.0,0.07397886]
[1772870392167,0.0897664,67849.0,67837.0,0.00027352]
[1772870392461,0.16080532,67848.0,67835.0,0.00595]
[1772870392700,0.0143216,67847.0,67835.0,0.00595]
[1772870393881,0.07369631,67846.0,67835.0,0.00595]
[1772870398395,0.07369631,67846.0,67836.0,0.02401462]
[1772870400279,0.07369631,67847.0,67837.0,0.07370608]
[1772870400451,0.07369631,67847.0,67838.0,0.02401462]
[1772870400999,0.00148,67846.0,67839.0,0.02401462]
[1772870401817,0.00148,67846.0,67837.0,0.07370608]
[1772870402531,0.00148,67845.0,67836.0,0.0977207]
[1772870402714,0.02488855,67844.0,67835.0,1e-08]
[1772870403788,0.02488855,67844.0,67828.0,0.09792995]
[1772870403789,0.02488855,67844.0,67819.0,0.07406517]
[1772870404113,0.07383697,67846.0,67830.0,0.0496611]
[1772870404295,0.07383697,67846.0,67823.0,0.07392114]
[1772870404296,0.0001398,67846.0,67836.0,0.0496611]
[1772870404494,0.07369522,67847.0,67836.0,0.0496611]
[1772870404495,0.07369522,67847.0,67838.0,0.02401462]
[1772870404701,0.02647235,67846.0,67837.0,0.0002]
[1772870406710,0.07369739,67845.0,67837.0,0.0002]
[1772870407452,0.07380119,67845.0,67837.0,0.0002]
[1772870407892,0.02284821,67844.0,67830.0,0.0002]
[1772870408019,0.07380119,67845.0,67823.0,0.0002]
[1772870408020,0.16163564,67841.0,67823.0,0.27504151]
[1772870408225,0.02432821,67840.0,67823.0,0.07392072]
[1772870408425,0.02443201,67840.0,67823.0,0.07392072]
[1772870408644,0.07370391,67839.0,67823.0,0.0002]
[1772870408917,0.02284821,67837.0,67823.0,0.0002]
[1772870409884,0.02284821,67837.0,67823.0,0.0012]
[1772870410092,0.02284821,67837.0,67823.0,0.0002]
[1772870410271,0.02284821,67837.0,67823.0,0.20132079]
[1772870410465,0.02284821,67837.0,67823.0,0.20232079]
[1772870410667,0.07370717,67836.0,67823.0,0.20132079]
[1772870411375,0.07370717,67836.0,67823.0,0.27504203]
[1772870411554,0.02284821,67835.0,67823.0,0.0002]
[1772870411760,0.02284821,67833.0,67823.0,0.0002]
[1772870412803,0.07371152,67832.0,67823.0,0.0002]
[1772870416715,0.16163564,67831.0,67823.0,1e-08]
[1772870416918,0.02284821,67830.0,67816.0,0.06703871]
[1772870417125,0.02284821,67829.0,67816.0,0.06703871]
[1772870417268,0.02284821,67827.0,67816.0,0.06703871]
[1772870418380,0.02284821,67827.0,67815.0,0.0002]
[1772870418617,0.02284821,67825.0,67815.0,0.0002]
[1772870418770,0.02284821,67825.0,67816.0,0.0002]
[1772870421464,0.07372021,67824.0,67816.0,0.0002]
[1772870423059,0.0004,67850.0,67816.0,0.0002]
[1772870423214,0.02284821,67833.0,67816.0,0.0002]
[1772870424014,0.07371152,67832.0,67816.0,0.07392891]
[1772870424278,0.02284821,67831.0,67816.0,0.07392891]
[1772870424644,0.02284821,67831.0,67817.0,0.02428653]
[1772870424852,0.02284821,67831.0,67816.0,0.07392891]
[1772870425057,0.02284821,67829.0,67816.0,0.0002]
[1772870425464,0.02284821,67829.0,67816.0,0.0012]
[1772870425870,0.02284821,67829.0,67816.0,0.0002]
[1772870426402,0.07371586,67828.0,67816.0,0.0002]
[1772870426757,0.07371586,67828.0,67816.0,0.02448653]
[1772870427670,0.07371586,67828.0,67816.0,0.0002]
[1772870427880,0.09656407,67828.0,67816.0,0.0002]
[1772870428472,0.07371586,67828.0,67816.0,0.0002]
[1772870428815,0.02284821,67826.0,67816.0,0.0002]
[1772870429764,0.02284821,67825.0,67816.0,0.0002]
[1772870430019,0.02432821,67824.0,67816.0,0.0002]
[1772870430193,0.00148,67824.0,67816.0,0.0002]
[1772870433562,0.07520051,67824.0,67816.0,0.0002]
[1772870435160,0.00148,67824.0,67816.0,0.07392891]
[1772870435769,0.00148,67823.0,67816.0,0.07392891]
[1772870436065,0.00148,67823.0,67817.0,0.02428653]
[1772870436260,0.00148,67822.0,67817.0,0.02428653]
[1772870436624,0.00148,67822.0,67816.0,0.07392891]
[1772870437826,0.00148,67821.0,67817.0,0.15902285]
[1772870438026,0.00148,67820.0,67818.0,0.18288632]
[1772870438246,0.07371478,67830.0,67818.0,0.18288632]
[1772870438247,0.00148,67819.0,67818.0,0.18288632]
[1772870438561,0.00148,67819.0,67818.0,0.02386347]
[1772870439010,0.00148,67819.0,67816.0,0.09779238]
[1772870440197,0.00148,67819.0,67817.0,0.02386347]
[1772870440452,0.00136428,67819.0,67817.0,0.02386347]
[1772870441216,0.00136428,67819.0,67816.0,0.07392891]
[1772870441653,0.00136428,67819.0,67816.0,0.09779238]
[1772870444485,0.00022001,67825.0,67817.0,0.02386347]
[1772870444685,0.07371328,67831.0,67820.0,0.0496611]
[1772870444903,0.00022001,67833.0,67822.0,0.15902285]
[1772870445044,0.00148,67830.0,67823.0,0.02386347]
[1772870445438,0.00022001,67825.0,67823.0,0.02386347]
[1772870447077,0.07370942,67834.0,67823.0,0.02386347]
[1772870447078,0.00011499,67836.0,67824.0,0.07372021]
[1772870447288,0.07390967,67853.0,67824.0,0.07372021]
[1772870447289,0.0004,67850.0,67829.0,0.02386347]
[1772870447488,0.00148,67845.0,67833.0,0.15902285]
[1772870447698,0.00148,67845.0,67835.0,0.02386347]
[1772870447901,0.16522243,67844.0,67829.0,0.00011499]
[1772870448079,0.02447017,67843.0,67829.0,0.00011499]
[1772870448301,0.02447017,67843.0,67830.0,0.0496611]
[1772870448504,0.02447017,67843.0,67829.0,0.00011499]
[1772870449104,0.07370065,67842.0,67830.0,0.07371369]
[1772870449304,0.09817082,67842.0,67830.0,0.07371369]
[1772870449504,0.16522243,67839.0,67802.0,0.0002]
[1772870449702,0.02447017,67828.0,67816.0,0.07392875]
[1772870450034,0.00011503,67839.0,67816.0,0.07392875]
[1772870450035,0.02447017,67826.0,67816.0,0.07392875]
[1772870450178,0.02595017,67825.0,67816.0,0.07392875]
[1772870451706,0.07372021,67824.0,67816.0,0.0012]
[1772870452324,0.07372021,67824.0,67816.0,0.0002]
[1772870452523,0.02447017,67823.0,67816.0,0.0002]
[1772870454529,0.0981925,67823.0,67816.0,0.0002]
[1772870456325,0.02447017,67823.0,67816.0,0.0002]
[1772870456711,0.0981917,67823.0,67816.0,0.0002]
[1772870461265,0.07372084,67824.0,67816.0,0.0002]
[1772870462767,0.09777636,67824.0,67816.0,0.0002]
[1772870463691,0.07372084,67824.0,67816.0,0.0002]
[1772870466346,0.07519945,67825.0,67816.0,0.0002]
[1772870466548,0.00148,67825.0,67816.0,0.0002]
[1772870466748,0.00148,67824.0,67818.0,0.02293921]
[1772870467190,0.07393488,67829.0,67818.0,0.02293921]
[1772870467368,0.00148,67823.0,67818.0,0.02293921]
[1772870467998,0.00148,67823.0,67816.0,0.0002]
[1772870470394,0.00148,67823.0,67816.0,0.0012]
[1772870470801,0.00148,67823.0,67816.0,0.0002]
[1772870471131,0.07372239,67822.0,67816.0,0.0002]
[1772870471250,0.0752015,67823.0,67816.0,0.0002]
[1772870472283,0.00148,67823.0,67816.0,0.0002]
[1772870472467,0.07371995,67825.0,67816.0,0.0002]
[1772870472468,0.00148,67822.0,67816.0,0.0002]
[1772870473904,0.0013245,67822.0,67816.0,0.0002]
[1772870475016,0.07504774,67822.0,67816.0,0.0002]
[1772870477236,0.02433249,67821.0,67809.0,0.0002]
[1772870477434,0.02433249,67817.0,67804.0,0.07389576]
[1772870477651,0.02433249,67815.0,67804.0,0.07389576]
[1772870478416,0.02433249,67813.0,67804.0,0.0001542]
[1772870478632,0.02433249,67812.0,67804.0,0.00053784]
[1772870479041,0.07373652,67809.0,67802.0,0.0002]
[1772870479272,0.02565696,67808.0,67802.0,0.0002]
[1772870482350,0.07373869,67807.0,67802.0,0.0002]
[1772870482653,0.07373869,67807.0,67796.0,0.07390482]
[1772870482807,0.00148,67806.0,67796.0,0.0980294]
[1772870483223,0.07373869,67807.0,67796.0,0.0980294]
[1772870483432,0.00148,67806.0,67796.0,0.07401994]
[1772870483634,0.00148,67806.0,67802.0,0.0002]
[1772870483831,0.00148,67805.0,67802.0,0.0002]
[1772870484066,0.00132445,67805.0,67802.0,0.0002]
[1772870484316,0.07373823,67808.0,67802.0,0.0002]
[1772870484472,0.00148,67804.0,67802.0,0.0002]
[1772870484796,0.07373982,67806.0,67802.0,0.0002]
[1772870484979,0.00148,67804.0,67802.0,0.0002]
[1772870485348,0.07373619,67810.0,67802.0,0.0002]
[1772870485572,0.00148,67804.0,67802.0,0.0002]
[1772870485770,0.07373619,67810.0,67802.0,0.0002]
[1772870485972,0.09806462,67814.0,67802.0,0.0002]
[1772870486169,0.07372605,67819.0,67804.0,0.02400946]
[1772870486510,0.07372782,67817.0,67808.0,0.07373761]
[1772870487097,0.00148,67816.0,67808.0,0.07373761]
[1772870487816,0.00148,67816.0,67805.0,0.07374087]
[1772870488048,0.02581249,67816.0,67808.0,0.001]
[1772870488322,0.168246,67816.0,67805.0,0.07366287]
[1772870488505,0.07373108,67814.0,67802.0,0.0002]
[1772870488699,0.02433249,67813.0,67802.0,0.0002]
[1772870489822,0.02433249,67813.0,67802.0,0.0012]
[1772870490543,0.09806472,67813.0,67808.0,0.001]
[1772870490957,0.09806472,67813.0,67807.0,0.07373811]
[1772870491089,0.07373223,67813.0,67807.0,0.07373811]
[1772870491290,0.07357666,67813.0,67807.0,0.07373811]
[1772870493656,0.09806357,67815.0,67805.0,0.0002]
[1772870493941,0.07373108,67815.0,67805.0,0.02420946]
[1772870494146,0.07521108,67816.0,67805.0,0.02420946]
[1772870494311,0.07520896,67816.0,67806.0,0.02400946]
[1772870495142,0.00148,67816.0,67806.0,0.2049898]
[1772870495341,0.09805687,67821.0,67807.0,0.02400946]
[1772870495568,0.07520521,67820.0,67809.0,0.02400946]
[1772870496133,0.07520521,67820.0,67810.0,0.0496885]
[1772870496534,0.0995377,67820.0,67810.0,0.0496885]
[1772870496991,0.0995377,67820.0,67808.0,0.07373761]
[1772870497388,0.07520521,67820.0,67808.0,0.07373761]
[1772870497563,0.07372673,67818.0,67806.0,0.07373761]
[1772870497763,0.07372673,67818.0,67805.0,0.07394087]
[1772870498082,0.02197079,67817.0,67805.0,0.07394087]
[1772870498589,0.02197079,67815.0,67805.0,0.07394087]
[1772870498883,0.02197079,67813.0,67805.0,0.07394087]
[1772870499510,0.07373234,67813.0,67808.0,0.0002]
[1772870499716,0.02197079,67812.0,67808.0,0.0002]
[1772870500626,0.0216434,67812.0,67808.0,0.0002]
[1772870501017,0.07373234,67813.0,67808.0,0.0002]
[1772870502616,0.02197079,67812.0,67808.0,0.0002]
[1772870503556,0.07373234,67813.0,67808.0,0.0002]
[1772870504080,0.07373234,67813.0,67801.0,0.0844857]
[1772870504283,0.07373234,67813.0,67801.0,0.08210457]
[1772870505369,0.00148,67814.0,67801.0,0.05975618]
[1772870505562,0.00148,67814.0,67803.0,0.02234839]
[1772870505769,0.07521162,67814.0,67801.0,0.07394505]
[1772870505981,0.02197079,67813.0,67801.0,0.07394505]
[1772870506596,0.02197079,67813.0,67801.0,0.07394491]
[1772870507039,0.02197079,67811.0,67801.0,0.0002]
[1772870507248,0.02197079,67811.0,67801.0,0.0739451]
[1772870507569,0.02197079,67811.0,67807.0,0.0002]
[1772870508200,0.02197079,67809.0,67807.0,0.0002]
[1772870508396,0.02345079,67808.0,67807.0,0.0002]
[1772870510338,0.0971884,67808.0,67807.0,0.0002]
[1772870510895,0.0971884,67808.0,67801.0,0.0002]
[1772870513789,0.00148,67807.0,67803.0,0.1553013]
[1772870513962,0.0739522,67813.0,67805.0,0.17764969]
[1772870514162,0.00148,67809.0,67806.0,0.02234839]
[1772870514371,0.0739522,67813.0,67806.0,0.02234839]
[1772870514582,0.07521344,67812.0,67806.0,0.09608774]